[Event "POL-chT 2 Liga 2019"]
[Site "Poronin"]
[Date "2019.09.11"]
[Round "5.21"]
[White "Duda, Lukasz"]
[Black "Malovanyi, Yulian"]
[Result "1/2-1/2"]
[ECO "D02"]
[WhiteElo "2209"]
[BlackElo "2320"]
[Annotator "NA"]
[PlyCount "84"]
[EventDate "2019.09.07"]
[EventType "team-tourn"]
[EventCountry "POL"]
[SourceTitle "playchess.com"]
[Source "ChessBase"]
[SourceQuality "1"]
[TimeControl "40/5400+30:1800+30"]

1. d4 {[%emt 0:00:00]} d5 {[%emt 0:02:29]} 2. Nf3 {[%emt 0:00:00]} Nc6 {[%emt 0:00:05]} 3. Bf4 {[%emt 0:00:32]} Bg4 {[%emt 0:01:10]} 4. e3 {[%emt 0:01:14]} e6 {[%emt 0:00:22]} 5. h3 {[%emt 0:01:00]} Bh5 {[%emt 0:01:20]} 6. c4 {[%emt 0:03:24]} Bd6 {[%emt 0:02:35]} 7. Bxd6 {[%emt 0:01:14]} Qxd6 {[%emt 0:00:48]} 8. c5 {[%emt 0:03:25]} Bxf3 {[%emt 0:09:17]} 9. Qxf3 {[%emt 0:04:14]} Qd7 {[%emt 0:01:26]} 10. Bb5 {[%emt 0:03:12]} Nge7 {[%emt 0:02:06]} 11. Nc3 {[%emt 0:01:22]} O-O {[%emt 0:00:57]} 12. O-O {[%emt 0:01:39]} a6 {[%emt 0:02:36]} 13. Ba4 {[%emt 0:01:25]} b5 {[%emt 0:01:42]} 14. cxb6 {[%emt 0:04:54]} cxb6 {[%emt 0:00:07]} 15. Rac1 {[%emt 0:03:31]} b5 {[%emt 0:01:09]} 16. Bc2 {[%emt 0:00:35]} Nc8 {[%emt 0:07:22]} 17. Ne2 {[%emt 0:11:28]} Nd6 {[%emt 0:01:52]} 18. b3 {[%emt 0:00:22]} Rfc8 {[%emt 0:03:19]} 19. Nf4 {[%emt 0:07:18]} Ra7 {[%emt 0:17:56]} 20. Bb1 {[%emt 0:04:10]} Rac7 {[%emt 0:00:48]} 21. Qd1 {[%emt 0:04:08]} Nb8 {[%emt 0:11:37]} 22. Qd2 {[%emt 0:05:25]} Rc6 {[%emt 0:02:01]} 23. Rxc6 {[%emt 0:04:02]} Qxc6 {[%emt 0:00:18]} 24. Ne2 {[%emt 0:00:43]} Nd7 {[%emt 0:01:01]} 25. Rc1 {[%emt 0:02:07]} Qb7 {[%emt 0:02:07]} 26. Rxc8+ {[%emt 0:00:40]} Nxc8 {[%emt 0:00:55]} 27. Qc2 {[%emt 0:01:35]} g6 {[%emt 0:00:23]} 28. f3 {[%emt 0:02:56]} Nd6 {[%emt 0:00:12]} 29. Kf2 {[%emt 0:00:57]} Qb6 {[%emt 0:00:39]} 30. Qd2 {[%emt 0:07:24]} a5 {[%emt 0:00:34]} 31. Bd3 {[%emt 0:01:28]} Kg7 {[%emt 0:01:27]} 32. Nc3 {[%emt 0:07:31]} Qc6 {[%emt 0:03:17]} 33. Ne2 {[%emt 0:01:21]} Qc7 {[%emt 0:02:19]} 34. Qc2 {[%emt 0:01:05]} Qb6 {[%emt 0:00:50]} 35. Nc3 {[%emt 0:01:36]} h5 {[%emt 0:00:12]} 36. Ne2 {[%emt 0:03:54]} h4 {[%emt 0:01:55]} 37. Qc1 {[%emt 0:01:51]} b4 {[%emt 0:03:16]} 38. Kf1 {[%emt 0:02:04]} Qd8 {[%emt 0:12:40]} 39. Qc6 {[%emt 0:01:58]} Nb8 {[%emt 0:01:12]} 40. Qc5 {[%emt 0:00:00]} Nb7 {[%emt 0:00:00]} 41. Qc1 {[%emt 0:05:30]} Nd6 {[%emt 0:10:43]} 42. Qc5 {[%emt 0:00:35]} Nb7 {[%emt 0:00:07]} 1/2-1/2

[Event "POL-chT 2 Liga 2019"]
[Site "Poronin"]
[Date "2019.09.11"]
[Round "5.22"]
[White "Dudzinski, Pawel"]
[Black "Gola, Karol"]
[Result "1/2-1/2"]
[ECO "B23"]
[WhiteElo "2194"]
[BlackElo "2203"]
[Annotator "NA"]
[PlyCount "76"]
[EventDate "2019.09.07"]
[EventType "team-tourn"]
[EventCountry "POL"]
[SourceTitle "playchess.com"]
[Source "ChessBase"]
[SourceQuality "1"]
[TimeControl "40/5400+30:1800+30"]

1. e4 {[%emt 0:00:00]} c5 {[%emt 0:00:00]} 2. Nc3 {[%emt 0:00:08]} e6 {[%emt 0:00:00]} 3. g3 {[%emt 0:00:35]} Nc6 {[%emt 0:01:20]} 4. Bg2 {[%emt 0:00:06]} g6 {[%emt 0:00:52]} 5. d3 {[%emt 0:00:30]} Bg7 {[%emt 0:00:46]} 6. Be3 {[%emt 0:04:42]} d6 {[%emt 0:00:32]} 7. Qd2 {[%emt 0:00:22]} Rb8 {[%emt 0:04:18]} 8. f4 {[%emt 0:01:52]} b5 {[%emt 0:11:23]} 9. e5 {[%emt 0:02:14]} Nd4 {[%emt 0:11:14]} 10. exd6 {[%emt 0:02:42]} f5 {[%emt 0:09:42]} 11. Nd1 {[%emt 0:04:17]} Qxd6 {[%emt 0:10:42]} 12. c3 {[%emt 0:02:22]} Nc6 {[%emt 0:00:04]} 13. Qf2 {[%emt 0:03:17]} Bb7 {[%emt 0:02:05]} 14. Bxc5 {[%emt 0:08:07]} Qxd3 {[%emt 0:00:09]} 15. Qe2 {[%emt 0:23:02]} Qxe2+ {[%emt 0:06:28]} 16. Nxe2 {[%emt 0:01:02]} Nge7 {[%emt 0:13:22]} 17. Ne3 {[%emt 0:00:53]} Kf7 {[%emt 0:02:42]} 18. O-O-O {[%emt 0:01:10]} Rhd8 {[%emt 0:12:52]} 19. Rxd8 {[%emt 0:03:27]} Rxd8 {[%emt 0:02:08]} 20. Bxa7 {[%emt 0:04:34]} Ra8 {[%emt 0:00:03]} 21. Bc5 {[%emt 0:01:23]} Rxa2 {[%emt 0:00:11]} 22. Kc2 {[%emt 0:06:50]} Ra8 {[%emt 0:05:54]} 23. Rd1 {[%emt 0:00:18]} Rd8 {[%emt 0:00:15]} 24. Rxd8 {[%emt 0:06:18]} Nxd8 {[%emt 0:00:04]} 25. Bxb7 {[%emt 0:01:50]} Nxb7 {[%emt 0:00:05]} 26. Bd4 {[%emt 0:00:16]} Nc6 {[%emt 0:03:04]} 27. Bxg7 {[%emt 0:02:39]} Kxg7 {[%emt 0:00:03]} 28. Nd4 {[%emt 0:00:38]} Nxd4+ {[%emt 0:00:04]} 29. cxd4 {[%emt 0:00:01]} Na5 {[%emt 0:02:57]} 30. Kc3 {[%emt 0:00:58]} Nc6 {[%emt 0:00:05]} 31. d5 {[%emt 0:00:49]} exd5 {[%emt 0:00:04]} 32. Nxd5 {[%emt 0:00:02]} Kh6 {[%emt 0:01:29]} 33. b4 {[%emt 0:11:07]} Kh5 {[%emt 0:00:41]} 34. Nf6+ {[%emt 0:00:41]} Kh6 {[%emt 0:00:04]} 35. h4 {[%emt 0:00:10]} Kg7 {[%emt 0:00:33]} 36. Ne8+ {[%emt 0:02:43]} Kh6 {[%emt 0:00:08]} 37. Nf6 {[%emt 0:03:46]} Kg7 {[%emt 0:00:02]} 38. Ne8+ {[%emt 0:01:40]} Kh6 {[%emt 0:00:03]} 1/2-1/2

[Event "POL-chT 2 Liga 2019"]
[Site "Poronin"]
[Date "2019.09.11"]
[Round "5.23"]
[White "Szolc, Grzegorz"]
[Black "Chmielarz, Maciej"]
[Result "1/2-1/2"]
[ECO "A40"]
[WhiteElo "2038"]
[BlackElo "2008"]
[Annotator "NA"]
[PlyCount "46"]
[EventDate "2019.09.07"]
[EventType "team-tourn"]
[EventCountry "POL"]
[SourceTitle "playchess.com"]
[Source "ChessBase"]
[SourceQuality "1"]
[TimeControl "40/5400+30:1800+30"]

1. d4 {[%emt 0:00:00]} c6 {[%emt 0:00:00]} 2. Nf3 {[%emt 0:02:47]} d5 {[%emt 0:00:00]} 3. Bf4 {[%emt 0:00:36]} e6 {[%emt 0:00:07]} 4. e3 {[%emt 0:00:36]} Bd6 {[%emt 0:00:09]} 5. Bg3 {[%emt 0:00:52]} Nf6 {[%emt 0:02:01]} 6. Nbd2 {[%emt 0:00:48]} Bxg3 {[%emt 0:01:52]} 7. hxg3 {[%emt 0:00:17]} Nbd7 {[%emt 0:00:15]} 8. Bd3 {[%emt 0:18:24]} Qe7 {[%emt 0:04:01]} 9. Ne5 {[%emt 0:07:16]} Nxe5 {[%emt 0:02:22]} 10. dxe5 {[%emt 0:02:14]} Nd7 {[%emt 0:00:06]} 11. f4 {[%emt 0:00:54]} Qb4 {[%emt 0:17:44]} 12. Rb1 {[%emt 0:17:26]} Nc5 {[%emt 0:06:36]} 13. a3 {[%emt 0:07:42]} Nxd3+ {[%emt 0:02:00]} 14. cxd3 {[%emt 0:00:06]} Qc5 {[%emt 0:03:19]} 15. d4 {[%emt 0:04:35]} Qb5 {[%emt 0:01:24]} 16. Qc2 {[%emt 0:01:24]} g6 {[%emt 0:02:33]} 17. Kf2 {[%emt 0:04:24]} a5 {[%emt 0:06:58]} 18. a4 {[%emt 0:06:10]} Qb4 {[%emt 0:01:46]} 19. Nf3 {[%emt 0:03:06]} Bd7 {[%emt 0:02:21]} 20. b3 {[%emt 0:02:06]} b6 {[%emt 0:03:17]} 21. Ne1 {[%emt 0:04:33]} Rc8 {[%emt 0:02:21]} 22. Nd3 {[%emt 0:00:20]} Qe7 {[%emt 0:00:11]} 23. Qd2 {[%emt 0:00:59]} c5 {[%emt 0:09:46]} 1/2-1/2

[Event "POL-chT 2 Liga 2019"]
[Site "Poronin"]
[Date "2019.09.11"]
[Round "5.24"]
[White "Czerwinska, Milena"]
[Black "Mazur, Anna"]
[Result "1/2-1/2"]
[ECO "B42"]
[WhiteElo "2006"]
[BlackElo "1697"]
[Annotator "NA"]
[PlyCount "65"]
[EventDate "2019.09.07"]
[EventType "team-tourn"]
[EventCountry "POL"]
[SourceTitle "playchess.com"]
[Source "ChessBase"]
[SourceQuality "1"]
[TimeControl "40/5400+30:1800+30"]

1. e4 {[%emt 0:00:00]} c5 {[%emt 0:00:00]} 2. Nf3 {[%emt 0:00:00]} e6 {[%emt 0:00:00]} 3. d4 {[%emt 0:00:00]} cxd4 {[%emt 0:00:00]} 4. Nxd4 {[%emt 0:00:00]} a6 {[%emt 0:00:00]} 5. Bd3 {[%emt 0:00:24]} Qc7 {[%emt 0:00:58]} 6. O-O {[%emt 0:01:06]} Nf6 {[%emt 0:00:37]} 7. Nc3 {[%emt 0:00:36]} Be7 {[%emt 0:00:25]} 8. Qe2 {[%emt 0:01:07]} d6 {[%emt 0:01:16]} 9. Kh1 {[%emt 0:02:29]} Nbd7 {[%emt 0:00:53]} 10. f4 {[%emt 0:05:41]} O-O {[%emt 0:05:15]} 11. Bd2 {[%emt 0:01:12]} Rd8 {[%emt 0:07:43]} 12. Rae1 {[%emt 0:04:08]} Nc5 {[%emt 0:10:19]} 13. Nf3 {[%emt 0:26:24]} Nxd3 {[%emt 0:00:27]} 14. cxd3 {[%emt 0:05:47]} b5 {[%emt 0:06:40]} 15. Rc1 {[%emt 0:02:21]} Qb6 {[%emt 0:02:45]} 16. Be3 {[%emt 0:01:14]} Qb8 {[%emt 0:06:25]} 17. Rc2 {[%emt 0:04:43]} Bd7 {[%emt 0:06:53]} 18. Rfc1 {[%emt 0:04:29]} Rc8 {[%emt 0:06:54]} 19. Nd4 {[%emt 0:08:48]} Qb7 {[%emt 0:04:40]} 20. f5 {[%emt 0:03:23]} e5 {[%emt 0:02:40]} 21. Nf3 {[%emt 0:00:28]} b4 {[%emt 0:08:23]} 22. Nd1 {[%emt 0:01:32]} Bb5 {[%emt 0:00:14]} 23. Bg5 {[%emt 0:02:17]} a5 {[%emt 0:08:05]} 24. Bxf6 {[%emt 0:07:39]} Bxf6 {[%emt 0:00:14]} 25. Ne3 {[%emt 0:01:36]} Qa6 {[%emt 0:05:07]} 26. Rxc8+ {[%emt 0:01:49]} Rxc8 {[%emt 0:00:05]} 27. Rxc8+ {[%emt 0:00:06]} Qxc8 28. Nc4 {[%emt 0:01:02]} Bxc4 {[%emt 0:01:03]} 29. dxc4 {[%emt 0:08:15]} Qc5 {[%emt 0:00:21]} 30. g3 {[%emt 0:00:37]} Bd8 {[%emt 0:00:16]} 31. b3 {[%emt 0:00:33]} Bb6 {[%emt 0:00:23]} 32. Kg2 {[%emt 0:00:19]} Qe3 {[%emt 0:03:03]} 33. Qxe3 {[%emt 0:01:12]} 1/2-1/2

[Event "POL-chT 2 Liga 2019"]
[Site "Poronin"]
[Date "2019.09.11"]
[Round "5.27"]
[White "Gesicki, Jacek"]
[Black "Szadkowski, Krzysztof"]
[Result "1/2-1/2"]
[ECO "B03"]
[WhiteElo "2234"]
[BlackElo "2138"]
[Annotator "NA"]
[PlyCount "113"]
[EventDate "2019.09.07"]
[EventType "team-tourn"]
[EventCountry "POL"]
[SourceTitle "playchess.com"]
[Source "ChessBase"]
[SourceQuality "1"]
[TimeControl "40/5400+30:1800+30"]

1. e4 {[%emt 0:00:00]} Nf6 {[%emt 0:00:00]} 2. e5 {[%emt 0:00:08]} Nd5 {[%emt 0:00:06]} 3. d4 {[%emt 0:00:33]} d6 {[%emt 0:00:22]} 4. exd6 {[%emt 0:00:45]} exd6 {[%emt 0:00:20]} 5. g3 {[%emt 0:01:19]} Be7 {[%emt 0:02:06]} 6. Bg2 {[%emt 0:00:16]} Nb6 {[%emt 0:00:17]} 7. Ne2 {[%emt 0:00:46]} O-O {[%emt 0:01:02]} 8. O-O {[%emt 0:00:18]} Bf6 {[%emt 0:01:11]} 9. Nf4 {[%emt 0:02:58]} Nc6 {[%emt 0:00:30]} 10. c3 {[%emt 0:01:50]} Bf5 {[%emt 0:02:15]} 11. Nd2 {[%emt 0:02:19]} Re8 {[%emt 0:00:46]} 12. Re1 {[%emt 0:03:50]} Rxe1+ {[%emt 0:01:18]} 13. Qxe1 {[%emt 0:00:06]} Qd7 {[%emt 0:00:20]} 14. Nf1 {[%emt 0:04:44]} Re8 {[%emt 0:01:51]} 15. Qd1 {[%emt 0:19:08]} Bg5 {[%emt 0:08:56]} 16. b3 {[%emt 0:07:15]} Be4 {[%emt 0:04:39]} 17. Bh3 {[%emt 0:18:03]} Qd8 {[%emt 0:03:17]} 18. Be3 {[%emt 0:12:49]} Bxf4 {[%emt 0:08:40]} 19. Bxf4 {[%emt 0:00:02]} Qf6 {[%emt 0:00:16]} 20. Nd2 {[%emt 0:03:28]} Bd3 {[%emt 0:12:34]} 21. Bg2 {[%emt 0:01:18]} Qg6 {[%emt 0:07:37]} 22. Nf3 {[%emt 0:04:56]} Nd5 {[%emt 0:08:13]} 23. Nh4 {[%emt 0:01:17]} Nxc3 {[%emt 0:00:13]} 24. Nxg6 {[%emt 0:00:23]} Nxd1 {[%emt 0:00:07]} 25. Rxd1 {[%emt 0:01:39]} Bxg6 {[%emt 0:00:16]} 26. Bxc6 {[%emt 0:09:04]} bxc6 {[%emt 0:00:17]} 27. Bd2 {[%emt 0:00:01]} f6 {[%emt 0:05:17]} 28. Ba5 {[%emt 0:00:58]} Re2 {[%emt 0:01:59]} 29. Rd2 {[%emt 0:01:33]} Re7 {[%emt 0:00:28]} 30. f3 {[%emt 0:00:40]} Kf7 {[%emt 0:00:22]} 31. Kf2 {[%emt 0:00:01]} Bb1 {[%emt 0:00:33]} 32. a3 {[%emt 0:01:34]} Bf5 {[%emt 0:01:40]} 33. Re2 {[%emt 0:01:12]} Be6 {[%emt 0:00:38]} 34. Rc2 {[%emt 0:01:01]} Bd5 {[%emt 0:00:30]} 35. Re2 {[%emt 0:00:43]} Bxb3 {[%emt 0:02:09]} 36. Rxe7+ {[%emt 0:00:03]} Kxe7 {[%emt 0:00:06]} 37. Bxc7 {[%emt 0:00:02]} Ke6 {[%emt 0:00:36]} 38. Ke3 {[%emt 0:00:11]} Kd5 {[%emt 0:00:08]} 39. Bb8 {[%emt 0:00:20]} a6 {[%emt 0:00:13]} 40. Bc7 {[%emt 0:00:00]} Bd1 {[%emt 0:00:00]} 41. Bd8 {[%emt 0:01:51]} c5 {[%emt 0:03:14]} 42. dxc5 {[%emt 0:00:46]} dxc5 {[%emt 0:00:47]} 43. f4 {[%emt 0:02:31]} Bg4 {[%emt 0:03:45]} 44. h4 {[%emt 0:05:49]} Bh5 {[%emt 0:02:18]} 45. Be7 {[%emt 0:05:19]} c4 {[%emt 0:01:54]} 46. Bf8 {[%emt 0:03:07]} g6 {[%emt 0:00:45]} 47. Be7 {[%emt 0:02:07]} Ke6 {[%emt 0:00:48]} 48. Bb4 {[%emt 0:02:12]} Bd1 {[%emt 0:01:04]} 49. Bc3 {[%emt 0:00:47]} Kf5 {[%emt 0:00:49]} 50. Bb2 {[%emt 0:00:40]} h6 {[%emt 0:01:02]} 51. Bc3 {[%emt 0:00:39]} Bc2 {[%emt 0:01:24]} 52. Bb2 {[%emt 0:00:38]} Bd3 {[%emt 0:00:53]} 53. Bc3 {[%emt 0:00:32]} g5 {[%emt 0:02:05]} 54. fxg5 {[%emt 0:00:43]} hxg5 {[%emt 0:01:05]} 55. hxg5 {[%emt 0:00:50]} Kxg5 {[%emt 0:00:40]} 56. Kd2 {[%emt 0:01:05]} Kf5 {[%emt 0:01:00]} 57. Bd4 {[%emt 0:00:38] Ke5} 1/2-1/2

[Event "POL-chT 2 Liga 2019"]
[Site "Poronin"]
[Date "2019.09.11"]
[Round "5.29"]
[White "Polok, Rafal"]
[Black "Kwiatkowski, Wiktor"]
[Result "0-1"]
[ECO "B15"]
[WhiteElo "2053"]
[BlackElo "2011"]
[Annotator "NA"]
[PlyCount "58"]
[EventDate "2019.09.07"]
[EventType "team-tourn"]
[EventCountry "POL"]
[SourceTitle "playchess.com"]
[Source "ChessBase"]
[SourceQuality "1"]
[TimeControl "40/5400+30:1800+30"]

1. e4 {[%emt 0:00:00]} c6 {[%emt 0:00:06]} 2. d4 {[%emt 0:01:10]} d5 {[%emt 0:00:09]} 3. Nc3 {[%emt 0:00:09]} e6 {[%emt 0:03:21]} 4. Nf3 {[%emt 0:07:07]} Bb4 {[%emt 0:08:54]} 5. e5 {[%emt 0:03:08]} c5 {[%emt 0:02:23]} 6. a3 {[%emt 0:01:02]} Bxc3+ {[%emt 0:01:36]} 7. bxc3 {[%emt 0:00:07]} Nc6 {[%emt 0:00:44]} 8. a4 {[%emt 0:02:57]} Bd7 {[%emt 0:23:03]} 9. Bd3 {[%emt 0:11:49]} Rc8 {[%emt 0:14:12]} 10. Bd2 {[%emt 0:13:53]} Nge7 {[%emt 0:05:19]} 11. h4 {[%emt 0:02:33]} Na5 {[%emt 0:02:11]} 12. h5 {[%emt 0:03:08]} h6 {[%emt 0:01:26]} 13. Rh4 {[%emt 0:02:17]} Nc4 {[%emt 0:01:28]} 14. Bxc4 {[%emt 0:11:37]} dxc4 {[%emt 0:00:07]} 15. Rg4 {[%emt 0:00:17]} Nf5 {[%emt 0:03:16]} 16. Qe2 {[%emt 0:07:48]} Qa5 {[%emt 0:07:26]} 17. Qxc4 {[%emt 0:07:09]} cxd4 {[%emt 0:00:33]} 18. Qb4 {[%emt 0:09:42]} Qxb4 {[%emt 0:07:06]} 19. cxb4 {[%emt 0:00:05]} Rxc2 {[%emt 0:00:12]} 20. b5 {[%emt 0:02:48]} Rc4 21. Be3 O-O {[%emt 0:09:39]} 22. Nxd4 {[%emt 0:02:43]} f6 {[%emt 0:01:49]} 23. Rc1 {[%emt 0:04:13]} Nxe3 {[%emt 0:00:28]} 24. Rxc4 {[%emt 0:00:43]} Nxc4 {[%emt 0:00:37]} 25. exf6 {[%emt 0:00:16]} Rxf6 {[%emt 0:00:52]} 26. Nb3 {[%emt 0:00:48]} Ne5 {[%emt 0:01:20]} 27. Rd4 {[%emt 0:01:00]} Rf4 {[%emt 0:01:40]} 28. Rd2 {[%emt 0:02:25]} Rxa4 {[%emt 0:00:52]} 29. Nc5 {[%emt 0:00:03]} Ra1+ {[%emt 0:00:06]} 0-1

[Event "POL-chT 2 Liga 2019"]
[Site "Poronin"]
[Date "2019.09.11"]
[Round "5.30"]
[White "Pastuszko, Kinga"]
[Black "Trybowska, Barbara"]
[Result "0-1"]
[ECO "B92"]
[WhiteElo "1998"]
[BlackElo "1689"]
[Annotator "NA"]
[PlyCount "96"]
[EventDate "2019.09.07"]
[EventType "team-tourn"]
[EventCountry "POL"]
[SourceTitle "playchess.com"]
[Source "ChessBase"]
[SourceQuality "1"]
[TimeControl "40/5400+30:1800+30"]

1. e4 {[%emt 0:00:00]} c5 {[%emt 0:00:00]} 2. Nf3 {[%emt 0:00:00]} d6 {[%emt 0:00:00]} 3. d4 {[%emt 0:00:00]} cxd4 {[%emt 0:00:00]} 4. Nxd4 {[%emt 0:00:02]} Nf6 {[%emt 0:00:00]} 5. Nc3 {[%emt 0:00:09]} a6 {[%emt 0:00:06]} 6. Be2 {[%emt 0:01:24]} e5 {[%emt 0:02:07]} 7. Nf3 {[%emt 0:01:30]} Be7 {[%emt 0:01:45]} 8. Bg5 {[%emt 0:01:17]} Nbd7 {[%emt 0:01:00]} 9. O-O {[%emt 0:02:39]} h6 {[%emt 0:01:37]} 10. Bxf6 {[%emt 0:04:39]} Nxf6 {[%emt 0:00:23]} 11. Bc4 {[%emt 0:03:11]} O-O {[%emt 0:02:49]} 12. Qd3 {[%emt 0:03:06]} b5 {[%emt 0:07:12]} 13. Bb3 {[%emt 0:02:14]} Be6 {[%emt 0:06:01]} 14. Nd5 {[%emt 0:06:38]} Bxd5 {[%emt 0:01:32]} 15. Bxd5 {[%emt 0:00:09]} Nxd5 {[%emt 0:00:07]} 16. Qxd5 {[%emt 0:01:41]} Rc8 {[%emt 0:04:03]} 17. c3 {[%emt 0:03:24]} Qb6 {[%emt 0:02:00]} 18. Rfd1 {[%emt 0:18:41]} Kh8 {[%emt 0:19:34]} 19. Rd2 {[%emt 0:04:31]} Rc5 {[%emt 0:08:27]} 20. Qb3 {[%emt 0:03:36]} Rc4 {[%emt 0:10:24]} 21. Re2 {[%emt 0:03:34]} Qb7 {[%emt 0:04:27]} 22. Rae1 {[%emt 0:07:07]} Qd7 {[%emt 0:07:34]} 23. Nd2 {[%emt 0:09:16]} Rc7 {[%emt 0:00:18]} 24. Nf1 {[%emt 0:04:25]} Rc4 {[%emt 0:04:18]} 25. Ng3 {[%emt 0:01:16]} g6 {[%emt 0:00:33]} 26. Qd1 {[%emt 0:01:55]} Qe6 {[%emt 0:03:25]} 27. Qd3 {[%emt 0:04:17]} f5 {[%emt 0:02:37]} 28. b3 {[%emt 0:01:11]} Rc7 {[%emt 0:02:12]} 29. f3 {[%emt 0:04:52]} f4 {[%emt 0:00:58]} 30. Nf1 {[%emt 0:00:42]} h5 {[%emt 0:02:30]} 31. Nd2 {[%emt 0:00:38]} g5 {[%emt 0:02:00]} 32. c4 {[%emt 0:00:14]} b4 {[%emt 0:00:09]} 33. Qd5 {[%emt 0:00:46]} Qg6 {[%emt 0:00:56]} 34. Qa5 {[%emt 0:00:58]} Rfc8 {[%emt 0:00:32]} 35. Qxb4 {[%emt 0:04:13]} d5 {[%emt 0:00:15]} 36. Qa4 {[%emt 0:00:06]} d4 {[%emt 0:00:34]} 37. b4 {[%emt 0:00:15]} g4 {[%emt 0:02:23]} 38. c5 {[%emt 0:00:37]} d3 {[%emt 0:00:19]} 39. Rf2 {[%emt 0:02:25]} g3 {[%emt 0:00:37]} 40. Rff1 {[%emt 0:00:00]} gxh2+ {[%emt 0:00:00]} 41. Kh1 {[%emt 0:07:57]} Rg8 {[%emt 0:02:58]} 42. Rf2 {[%emt 0:10:21]} Bh4 {[%emt 0:00:56]} 43. Ref1 {[%emt 0:03:38]} Bxf2 {[%emt 0:00:49]} 44. Rxf2 {[%emt 0:00:04]} Qg3 {[%emt 0:00:24]} 45. Qxa6 {[%emt 0:00:25]} Rg6 {[%emt 0:07:42]} 46. Qa8+ {[%emt 0:01:56]} Kh7 {[%emt 0:00:20]} 47. Qd8 {[%emt 0:01:37]} Qxf2 {[%emt 0:00:47]} 48. Qxc7+ {[%emt 0:00:07]} Rg7 {[%emt 0:00:08]} 0-1

[Event "POL-chT 2 Liga 2019"]
[Site "Poronin"]
[Date "2019.09.11"]
[Round "5.32"]
[White "Daniel, Damian"]
[Black "Czerw, Dawid"]
[Result "1/2-1/2"]
[ECO "A46"]
[WhiteElo "2196"]
[BlackElo "2269"]
[Annotator "NA"]
[PlyCount "38"]
[EventDate "2019.09.07"]
[EventType "team-tourn"]
[EventCountry "POL"]
[SourceTitle "playchess.com"]
[Source "ChessBase"]
[SourceQuality "1"]
[TimeControl "40/5400+30:1800+30"]

1. d4 {[%emt 0:00:00]} Nf6 {[%emt 0:00:00]} 2. Nf3 {[%emt 0:00:00]} e6 {[%emt 0:00:00]} 3. g3 {[%emt 0:00:00]} d5 {[%emt 0:00:00]} 4. Bg2 {[%emt 0:00:00]} b5 {[%emt 0:00:00]} 5. O-O {[%emt 0:09:45]} Nbd7 {[%emt 0:00:13]} 6. Nbd2 {[%emt 0:12:45]} Bb7 {[%emt 0:03:33]} 7. c3 {[%emt 0:04:26]} c5 {[%emt 0:07:23]} 8. a4 {[%emt 0:01:12]} a6 {[%emt 0:02:11]} 9. axb5 {[%emt 0:11:03]} axb5 {[%emt 0:00:06]} 10. Rxa8 {[%emt 0:00:06]} Qxa8 {[%emt 0:00:47]} 11. dxc5 {[%emt 0:00:54]} Bxc5 {[%emt 0:03:03]} 12. Nb3 {[%emt 0:00:20]} Be7 {[%emt 0:10:31]} 13. Nbd4 {[%emt 0:03:14]} b4 {[%emt 0:02:16]} 14. cxb4 {[%emt 0:08:24]} Bxb4 {[%emt 0:00:45]} 15. Bd2 {[%emt 0:10:19]} Be7 {[%emt 0:03:47]} 16. Qa1 {[%emt 0:06:49]} O-O {[%emt 0:02:38]} 17. Qxa8 {[%emt 0:06:37]} Rxa8 {[%emt 0:00:06]} 18. Rb1 {[%emt 0:00:39]} Ne4 {[%emt 0:02:29]} 19. Be1 {[%emt 0:03:12]} e5 {[%emt 0:16:34]} 1/2-1/2

[Event "POL-chT 2 Liga 2019"]
[Site "Poronin"]
[Date "2019.09.11"]
[Round "5.33"]
[White "Niedbala, Bartlomiej"]
[Black "Stankiewicz, Pawel"]
[Result "1-0"]
[ECO "A40"]
[WhiteElo "2145"]
[BlackElo "2138"]
[Annotator "NA"]
[PlyCount "43"]
[EventDate "2019.09.07"]
[EventType "team-tourn"]
[EventCountry "POL"]
[SourceTitle "playchess.com"]
[Source "ChessBase"]
[SourceQuality "1"]
[TimeControl "40/5400+30:1800+30"]

1. d4 {[%emt 0:00:00]} e6 {[%emt 0:00:00]} 2. Nf3 {[%emt 0:01:42]} b6 {[%emt 0:00:00]} 3. e4 {[%emt 0:01:44]} Bb7 {[%emt 0:00:09]} 4. Bd3 {[%emt 0:00:06]} c5 {[%emt 0:00:09]} 5. c3 {[%emt 0:01:15]} d5 {[%emt 0:00:37]} 6. e5 {[%emt 0:00:38]} Nc6 {[%emt 0:00:22]} 7. O-O {[%emt 0:00:23]} Qc7 {[%emt 0:00:53]} 8. a3 {[%emt 0:03:41]} c4 {[%emt 0:03:08]} 9. Bc2 {[%emt 0:00:22]} O-O-O {[%emt 0:00:19]} 10. Re1 {[%emt 0:03:12]} Re8 {[%emt 0:03:26]} 11. Nbd2 {[%emt 0:16:01]} f6 {[%emt 0:02:47]} 12. b3 {[%emt 0:00:56]} fxe5 {[%emt 0:04:28]} 13. bxc4 {[%emt 0:04:58]} e4 {[%emt 0:27:51]} 14. cxd5 {[%emt 0:00:16]} exd5 {[%emt 0:00:45]} 15. c4 {[%emt 0:00:39]} dxc4 {[%emt 0:09:17]} 16. Nxe4 {[%emt 0:07:09]} h6 {[%emt 0:08:49]} 17. Nd6+ {[%emt 0:12:54]} Bxd6 {[%emt 0:00:06]} 18. Rxe8+ {[%emt 0:00:03]} Kd7 {[%emt 0:00:04]} 19. Qe2 {[%emt 0:01:22]} Be7 {[%emt 0:04:34]} 20. Bg6 {[%emt 0:01:45]} Nd8 {[%emt 0:01:59]} 21. Ne5+ {[%emt 0:02:11]} Kc8 {[%emt 0:00:02]} 22. Bf7 {[%emt 0:03:21]} 1-0